bitfinex/quotes_ETHUSD_20251006
["timestamp","ask_amount","ask_price","bid_price","bid_amount"]
[1759763991052,0.1072,4674.5,4674.1,0.4519]
[1759763991251,0.012,4674.9,4674.2,2.5912749]
[1759763991451,0.1072,4674.7,4674.2,2.5912749]
[1759763991670,0.1072,4674.7,4674.2,0.4519]
[1759763991878,0.1072,4674.7,4674.2,2.59128538]
[1759763992283,0.1072,4674.7,4674.2,2.13938538]
[1759763992481,0.1072,4674.7,4674.4,2.13927806]
[1759763992788,0.1072,4674.7,4674.4,2.424]
[1759763993445,0.012,4674.9,4674.5,2.59112811]
[1759763993778,0.012,4674.9,4674.5,0.4519]
[1759763993978,0.012,4674.9,4674.4,4.56329372]
[1759763994269,0.4376,4674.8,4674.1,2.5312]
[1759763994476,0.012,4674.9,4674.1,2.5312]
[1759763994778,0.1072,4674.6,4674.1,2.5312]
[1759763994977,0.1072,4674.6,4674.1,2.9831]
[1759763995145,0.1072,4674.6,4674.2,2.13940144]
[1759763995347,0.1072,4674.6,4674.1,2.9831]
[1759763995771,0.1072,4674.6,4674.1,2.5312]
[1759763996269,0.1072,4674.6,4674.1,4.67064598]
[1759763996479,0.1072,4674.6,4674.2,2.59126939]
[1759763996843,0.1072,4674.6,4674.2,2.13936939]
[1759763997076,0.1072,4674.6,4674.2,2.59126939]
[1759763997461,0.1072,4674.6,4674.1,2.5312]
[1759763997843,0.1072,4674.6,4674.1,4.67060399]
[1759763998057,0.1072,4674.6,4674.1,0.1072]
[1759763998273,0.1072,4674.6,4674.2,2.423]
[1759763998692,0.1072,4674.6,4674.2,4.56239317]
[1759763998894,0.1072,4674.6,4674.2,2.423]
[1759763999095,2.57686623,4674.5,4673.1,2.14090087]
[1759763999296,0.1072,4674.2,4673.4,2.5302]
[1759763999605,0.25768662,4674.4,4673.1,0.001]
[1759763999895,0.1072,4674.4,4673.7,0.1072]
[1759764000076,0.1072,4674.4,4673.8,8.542089]
[1759764000395,0.1072,4674.8,4674.1,0.1072]
[1759764000604,0.1072,4674.8,4674.2,2.423]
[1759764001401,0.1064,4674.8,4674.2,4.56239819]
[1759764002195,0.1064,4674.8,4674.2,2.423]
[1759764002504,0.1064,4674.8,4674.3,2.13931728]
[1759764002681,0.1064,4674.8,4674.2,2.8749]
[1759764004004,0.1064,4674.8,4674.2,2.423]
[1759764004870,0.1064,4674.8,4674.2,4.56239815]
[1759764005089,0.1064,4674.8,4674.2,2.423]
[1759764007111,0.012,4674.9,4674.2,2.423]
[1759764007112,2.13921181,4674.7,4674.2,2.423]
[1759764007331,2.24650403,4674.5,4673.8,0.1072]
[1759764007513,2.24650403,4674.5,4673.8,2.5302]
[1759764007514,0.1072,4674.5,4673.8,2.5302]
[1759764008923,0.1072,4674.5,4673.9,0.4365]
[1759764009230,0.1072,4674.5,4674.0,2.4]
[1759764009450,0.1192,4674.9,4674.3,2.13935084]
[1759764009724,0.1192,4674.9,4674.3,2.423]
[1759764010435,0.012,4674.9,4674.6,0.1072]
[1759764010629,0.012,4674.9,4674.8,2.13912894]
[1759764010812,0.012,4674.9,4674.8,24.31088119]
[1759764011134,0.012,4674.9,4674.8,27.14738119]
[1759764011336,0.012,4674.9,4674.8,30.57120061]
[1759764011495,0.012,4674.9,4674.8,7.545743]
[1759764011701,0.012,4674.9,4674.8,18.925438]
[1759764012728,0.012,4674.9,4674.8,29.797432]
[1759764013036,0.01,4675.9,4675.4,2.13885442]
[1759764013257,1e-08,4676.9,4675.9,0.6336]
[1759764013563,0.01602332,4678.0,4677.2,0.11159999]
[1759764014052,0.46217955,4677.8,4677.2,0.11159999]
[1759764014850,2.1378064,4677.7,4677.2,0.11159999]
[1759764015048,0.92966856,4677.6,4677.2,0.11159999]
[1759764015247,2.13795219,4677.4,4677.2,0.11159999]
[1759764015450,0.4524,4677.5,4677.2,0.11159999]
[1759764015745,0.47726856,4677.6,4677.2,0.11159999]
[1759764016064,0.00977955,4677.8,4677.2,0.11159999]
[1759764016544,0.00977955,4677.8,4677.3,2.424]
[1759764017118,0.00977955,4677.8,4677.3,2.8605]
[1759764017816,0.00977955,4677.8,4677.4,19.93101534]
[1759764018021,0.00977955,4677.8,4677.5,5.569312]
[1759764018224,0.00977955,4677.8,4677.6,2.13784846]
[1759764018461,0.00977955,4677.8,4677.6,0.4365]
[1759764018615,0.00977955,4677.8,4677.7,7.63828876]
[1759764018821,0.00977955,4677.8,4677.7,17.04965076]
[1759764019045,0.00977955,4677.8,4677.7,14.44587576]
[1759764019217,2.47786538,4679.2,4677.8,2.13771348]
[1759764019436,2.13725315,4679.0,4677.8,2.13771348]
[1759764019725,2.13737617,4678.7,4677.7,2.8605]
[1759764020041,0.46148586,4679.1,4677.5,2.4]
[1759764020243,4.56084997,4679.8,4677.2,2.4]
[1759764020244,2.13746657,4678.5,4677.6,2.424]
[1759764020538,2.424,4679.8,4677.6,2.424]
[1759764020722,2.13739154,4678.6,4677.6,2.424]
[1759764020926,2.13750032,4678.4,4677.6,2.424]
[1759764021352,2.13701426,4679.5,4676.8,0.4365]
[1759764021550,0.4524,4678.3,4676.9,1.985]
[1759764021760,0.4524,4678.7,4677.0,2.8365]
[1759764021964,2.13724683,4679.0,4677.1,2.8465]
[1759764022126,2.13711388,4679.3,4677.1,2.8465]
[1759764022127,2.13716105,4679.2,4677.3,2.4]
[1759764022453,0.4524,4679.3,4677.5,2.4]
[1759764022649,0.4524,4679.8,4678.0,0.11]
[1759764022819,0.4524,4679.8,4678.2,2.13757428]
[1759764023019,0.4524,4679.8,4678.3,2.57398745]
[1759764023258,0.1072,4679.3,4678.7,0.1072]
[1759764023449,0.56155052,4679.8,4678.8,2.423]
[1759764023649,2.13698516,4679.5,4678.8,2.423]
[1759764023832,0.56155052,4679.8,4678.8,2.423]
[1759764024240,0.10915052,4679.8,4678.8,2.423]
[1759764024440,2.24599665,4679.8,4678.8,2.423]
[1759764024654,2.13693478,4679.6,4678.8,2.423]
[1759764024841,0.57,4679.9,4678.8,2.423]
[1759764025243,0.51120288,4679.9,4679.0,0.6336]
[1759764025442,0.00935544,4681.1,4679.9,6.407]
[1759764025661,0.0092,4680.9,4680.1,2.4]
[1759764025862,0.00985595,4683.1,4681.0,2.13629566]
[1759764026165,0.00985595,4683.1,4681.5,2.13606749]
[1759764026369,2.13570787,4682.3,4681.4,2.422]
[1759764026656,0.4524,4682.0,4681.2,2.422]
[1759764027164,0.00973082,4682.6,4681.2,2.422]
[1759764027476,0.00973082,4682.6,4681.3,1.13655187]
[1759764027671,0.00973082,4682.6,4681.4,2.422]
[1759764028333,2.14529772,4682.6,4681.4,2.422]
[1759764028555,0.00973082,4682.6,4681.4,2.422]
[1759764028768,0.00973082,4682.6,4681.8,2.13592101]
[1759764028932,0.00973082,4682.6,4681.9,2.422]
[1759764029343,0.00973082,4682.6,4682.1,2.4]
[1759764029602,0.00973082,4682.6,4682.0,2.8365]
[1759764029735,0.06,4683.5,4682.6,2.4]
[1759764030060,0.06,4683.5,4683.4,2.13520092]
[1759764030377,0.06,4683.5,4683.4,13.90158692]
[1759764030530,0.06,4683.5,4683.4,22.76991088]
[1759764030734,0.06,4683.5,4683.4,16.73005288]
[1759764030963,0.06,4683.5,4683.4,14.52476988]
[1759764031429,0.06,4683.5,4683.4,12.34740188]
[1759764031630,0.06,4683.5,4683.4,15.64588688]
[1759764031835,0.06,4683.5,4683.4,12.30923988]
[1759764032043,0.06,4683.5,4683.4,7.81011035]
[1759764032560,0.06,4683.5,4683.4,2.421]
[1759764032747,0.06,4683.5,4683.4,4.55620092]
[1759764032943,0.06,4683.5,4683.4,2.8575]
[1759764033181,0.06,4683.5,4683.4,4.99270092]
[1759764033470,0.06,4683.5,4683.4,5.09910092]
[1759764033976,0.06,4683.5,4683.4,4.66260092]
[1759764034268,0.06,4683.5,4683.4,2.421]
[1759764034567,0.06,4683.5,4683.4,2.42]
[1759764034771,0.06,4683.5,4683.4,4.55520092]
[1759764034966,0.06,4683.5,4683.4,2.42]
[1759764035474,0.06,4683.5,4683.4,4.55520092]
[1759764035763,0.06,4683.5,4683.4,2.42]
[1759764035993,0.06,4683.5,4683.4,4.55520092]
[1759764036164,0.06,4683.5,4683.4,2.42]
[1759764036365,0.06,4683.5,4683.4,4.55520092]
[1759764037870,0.06,4683.5,4683.4,2.42]
[1759764039117,0.06,4683.5,4682.0,0.4641]
[1759764039270,0.06,4683.5,4682.1,8.686983]
[1759764039466,0.06,4683.5,4682.2,19.22509]
[1759764039801,0.06,4683.5,4682.6,2.13552134]
[1759764039979,0.06,4683.5,4682.7,2.419]
[1759764040174,0.4376,4683.4,4682.1,0.42540756]
[1759764040386,0.26427478,4683.3,4682.2,2.419]
[1759764040771,0.4376,4683.4,4682.4,2.13565002]
[1759764040974,0.06,4683.5,4682.5,2.13556679]
[1759764041283,0.06,4683.5,4682.6,2.419]
[1759764041483,0.06,4683.5,4682.7,2.8831]
[1759764041687,0.06,4683.5,4682.0,0.88938852]
[1759764041992,0.06,4683.5,4682.1,4.819]
[1759764042194,0.06,4683.5,4682.4,2.13562594]
[1759764042369,0.26427307,4683.4,4682.5,4.55460783]
[1759764042570,0.26427307,4683.4,4682.5,2.419]
[1759764042879,0.26427307,4683.4,4682.6,2.13555937]
[1759764043069,0.06,4683.5,4682.5,2.419]
[1759764043267,0.4376,4683.4,4682.0,0.42528852]
[1759764043490,0.4376,4683.4,4682.1,2.418]
[1759764043692,0.4376,4683.4,4680.8,0.4641]
[1759764043693,0.3276,4683.3,4680.8,0.4641]
[1759764043893,2.13569084,4682.4,4681.2,4.33620405]
[1759764044229,2.13578541,4682.2,4681.8,0.1064]
[1759764044430,2.13581699,4682.1,4681.8,0.1064]
[1759764044635,2.13538378,4683.0,4680.6,0.10885698]
[1759764044636,2.13593754,4681.8,4680.6,2.418]
[1759764044827,0.21359375,4681.7,4681.0,0.1072]
[1759764044996,2.418,4681.6,4680.1,0.44259706]
[1759764045190,2.24340439,4681.2,4680.3,0.1072]
[1759764045827,2.68100439,4681.2,4680.3,0.1072]
[1759764046322,2.68100439,4681.2,4680.1,0.01]
[1759764047191,0.1072,4681.3,4680.6,0.1072]
[1759764049428,0.4376,4681.7,4680.6,0.1072]
[1759764049596,0.1072,4681.5,4680.6,0.1072]
[1759764049944,0.1072,4681.5,4680.6,2.24363532]
[1759764050106,0.1064,4681.5,4680.6,0.1072]
[1759764050424,0.1064,4681.5,4680.1,0.01]
[1759764050425,0.4376,4682.8,4680.8,2.418]
[1759764050595,0.06,4683.5,4681.2,0.1072]
[1759764050596,0.544,4681.8,4681.2,0.1072]
[1759764050939,2.13723101,4683.4,4680.1,0.4741]
[1759764050940,0.1072,4681.2,4680.1,0.01]
[1759764051139,5.10234002,4681.2,4680.1,0.01]
[1759764051327,5.53994002,4681.2,4680.1,0.01]
[1759764051532,3.11894002,4681.2,4680.1,0.01]
[1759764051735,0.54513563,4681.2,4680.4,2.13653304]
[1759764052031,0.1072,4681.2,4680.6,0.1072]
[1759764052233,0.1072,4681.4,4680.6,0.1072]
[1759764052431,0.1072,4681.4,4680.8,0.1072]
[1759764052612,0.4376,4681.8,4680.4,2.4]
[1759764052812,0.4376,4681.8,4681.3,0.1072]
[1759764053014,0.1064,4681.9,4681.3,0.1072]
[1759764053626,0.4376,4681.8,4680.4,2.4]
[1759764053826,2.13598328,4681.7,4680.3,2.422]
[1759764054026,0.1072,4681.6,4680.9,0.1072]
[1759764054344,0.1072,4681.6,4680.3,2.422]
[1759764054345,2.13606749,4681.5,4680.3,4.822]
[1759764054554,2.24339122,4681.3,4680.7,0.1072]
[1759764054841,0.1072,4681.3,4680.7,0.1072]
[1759764055022,0.4376,4681.2,4680.7,0.1072]
[1759764055217,0.1072,4681.3,4680.8,2.13638027]
[1759764055617,0.00998108,4683.6,4681.2,2.13620439]
[1759764055825,0.00998108,4683.6,4681.4,2.4]
[1759764056026,0.20037331,4683.4,4683.1,2.1353027]
[1759764056247,0.002,4683.4,4682.8,2.13543222]
[1759764056423,0.002,4683.4,4682.7,2.1355142]
[1759764056750,0.002,4683.4,4682.6,2.423]
[1759764057214,0.002,4683.4,4682.6,4.5585581]
[1759764057610,0.002,4683.4,4682.7,2.13551627]
[1759764058011,0.26646008,4683.4,4682.6,4.55856477]
[1759764058243,0.002,4683.4,4682.7,2.13551047]
[1759764058424,0.002,4683.4,4682.8,2.13547162]
[1759764058631,0.002,4683.4,4682.6,2.423]
[1759764059028,0.4376,4683.3,4682.6,2.423]
[1759764059229,2.13529563,4683.2,4682.2,4.53574815]
[1759764059419,0.4376,4683.3,4682.2,4.53574815]
[1759764059624,0.002,4683.4,4682.2,2.4]
[1759764059939,0.002,4683.4,4682.3,2.13565987]
[1759764060138,0.002,4683.4,4682.6,2.13555849]
[1759764060445,0.002,4683.4,4682.2,2.8641]
[1759764060633,0.002,4683.4,4682.9,2.13541948]
[1759764060839,0.002,4683.4,4683.0,2.1353833]
[1759764061014,0.002,4683.4,4683.1,7.76943]
[1759764061219,0.002,4683.4,4683.1,2.1353377]
[1759764061448,0.002,4683.4,4683.3,2.13524651]
[1759764061651,0.002,4683.4,4683.3,3.30225782]
[1759764061851,0.002,4683.4,4683.3,6.16635782]
[1759764062161,0.002,4683.4,4683.3,3.56701131]
[1759764062336,0.002,4683.4,4683.3,4.823]
[1759764062539,0.002,4683.4,4683.3,2.423]
[1759764063422,2.13525695,4683.3,4682.3,4.55865862]
[1759764063749,0.002,4683.4,4682.3,2.423]
[1759764064069,0.002,4683.4,4682.5,2.13560675]
[1759764064352,0.002,4683.4,4682.4,2.4]
[1759764064554,0.002,4683.4,4682.3,2.423]
[1759764065065,0.002,4683.4,4683.3,2.13524651]
[1759764065359,0.002,4683.4,4683.3,6.95824651]
[1759764065530,0.002,4683.4,4683.3,7.40364651]
[1759764065731,0.002,4683.4,4683.3,7.51004651]
[1759764066667,0.00998108,4683.6,4683.4,2.4]
[1759764066868,0.00998108,4683.6,4683.5,12.48017414]
[1759764067050,0.00998108,4683.6,4683.5,7.14904714]
[1759764067251,0.00998108,4683.6,4683.5,9.75610714]
[1759764067695,0.00998108,4683.6,4683.5,17.23056414]
[1759764067840,0.00998108,4683.6,4683.5,16.23443614]
[1759764068041,249.92008729,4684.0,4683.9,2.13497299]
[1759764068256,249.92008729,4684.0,4683.9,7.40337299]
[1759764068456,249.92008729,4684.0,4683.9,8.98113352]
[1759764070083,249.92008729,4684.0,4683.9,4.55997299]
[1759764070455,249.92008729,4684.0,4683.9,2.425]
[1759764070855,249.87008729,4684.0,4683.9,4.55997299]
[1759764071943,249.87008729,4684.0,4683.9,6.95997299]
[1759764073505,249.87008729,4684.0,4683.9,7.40537299]
[1759764073705,249.87008729,4684.0,4683.9,8.35941439]
[1759764074177,242.42825687,4684.0,4683.9,38.35941439]
[1759764074369,200.0302686,4684.0,4683.9,25.71603855]
[1759764074567,200.0294686,4684.0,4683.9,25.71603855]
[1759764074800,200.0294686,4684.0,4683.9,26.47025819]
[1759764075312,192.58763818,4684.0,4683.9,30.92740255]
[1759764075611,192.58763818,4684.0,4683.9,25.65736655]
[1759764075813,192.58763818,4684.0,4683.9,25.15377955]
[1759764076106,192.58763818,4684.0,4683.9,25.4832535]
[1759764076290,192.58763818,4684.0,4683.9,12.99566432]
[1759764076464,192.58763818,4684.0,4683.9,13.52594626]
[1759764076664,192.58763818,4684.0,4683.9,12.53879289]
[1759764076865,192.58763818,4684.0,4683.9,11.95707437]
[1759764077307,192.58763818,4684.0,4683.9,8.34459537]
[1759764077611,192.58763818,4684.0,4683.9,5.25558098]
[1759764078307,192.58763818,4684.0,4683.9,7.39055397]
[1759764078915,192.58763818,4684.0,4683.9,2.425]
[1759764079617,193.01763818,4684.0,4683.9,2.425]
[1759764080070,192.58763818,4684.0,4683.9,4.9314]
[1759764080816,192.58763818,4684.0,4683.9,7.06637299]
[1759764081100,192.58763818,4684.0,4683.9,18.02155149]
[1759764081303,192.58963818,4684.0,4683.9,17.9205818]
[1759764081470,192.58963818,4684.0,4683.9,18.0269818]
[1759764081998,187.45470497,4684.0,4683.9,18.0269818]
[1759764082172,181.28065098,4684.0,4683.9,31.53039534]
[1759764082500,156.17630161,4684.0,4683.9,28.2124098]
[1759764082695,131.53127367,4684.0,4683.9,28.2124098]
[1759764082895,131.53127367,4684.0,4683.9,28.54188375]
[1759764083099,122.79316554,4684.0,4683.9,28.54188375]
[1759764083309,36.17554591,4684.0,4683.9,38.80402325]
[1759764083791,36.06554591,4684.0,4683.9,38.4745493]
[1759764084367,33.1863509,4684.0,4683.9,40.40579941]
[1759764084568,33.1863509,4684.0,4683.9,38.4745493]
[1759764084799,0.01023134,4684.5,4684.0,5.16852741]
[1759764084978,0.01023134,4684.5,4684.0,37.83508028]
[1759764085298,0.01023134,4684.5,4684.4,5.16834511]
[1759764085499,0.01023134,4684.5,4684.4,37.59434511]
[1759764085796,0.01023134,4684.5,4684.4,35.61374511]
[1759764085978,0.01023134,4684.5,4684.4,22.93019611]
[1759764086183,0.01023134,4684.5,4684.4,22.64900711]
[1759764086382,0.01023134,4684.5,4684.4,38.03974511]
[1759764086575,0.01023134,4684.5,4684.4,39.5556831]
[1759764086787,0.01023134,4684.5,4684.4,38.03974511]
[1759764086989,0.01023134,4684.5,4684.4,38.36921906]
[1759764088685,0.01023134,4684.5,4684.4,22.59973206]
[1759764088888,0.01023134,4684.5,4684.4,17.74049511]
[1759764089070,0.01023134,4684.5,4684.4,19.25672542]
[1759764089271,0.01023134,4684.5,4684.4,17.74049511]
[1759764089469,0.01023134,4684.5,4684.4,20.88727317]
[1759764089680,0.01023134,4684.5,4684.4,13.65827995]
[1759764089973,0.01023134,4684.5,4684.4,8.639772]
[1759764090169,0.01023134,4684.5,4684.4,10.77451711]
[1759764090672,0.01023134,4684.5,4684.4,12.718573]
[1759764090882,0.01023134,4684.5,4684.4,13.687708]
[1759764091081,0.01023134,4684.5,4684.4,10.44404611]
[1759764091287,0.01023134,4684.5,4684.4,33.74747206]
[1759764091476,0.01023134,4684.5,4684.4,38.29159717]
[1759764091698,0.01023134,4684.5,4684.4,36.77461906]
[1759764092295,0.01023134,4684.5,4684.4,26.78732106]
[1759764092684,0.01023134,4684.5,4684.4,30.62482349]
[1759764092889,0.01023134,4684.5,4684.4,29.55343306]
[1759764093310,0.01023134,4684.5,4684.4,38.47461906]
[1759764094408,0.01023134,4684.5,4684.4,38.02921906]
[1759764094609,0.01023134,4684.5,4684.4,38.48861906]
[1759764095307,0.01023134,4684.5,4684.4,40.41694406]
[1759764095690,0.01023134,4684.5,4684.4,35.70584206]
[1759764096085,0.01023134,4684.5,4684.4,36.13764206]
[1759764096287,0.01023134,4684.5,4684.4,34.53499006]
[1759764096511,0.01023134,4684.5,4684.4,2.36419895]
[1759764096703,0.46343134,4684.5,4684.4,7.898848]
[1759764097011,0.01023134,4684.5,4684.4,15.33614939]
[1759764097192,0.46343134,4684.5,4684.4,9.43089028]
[1759764097512,0.01023134,4684.5,4684.4,9.40955628]
[1759764098076,0.46343134,4684.5,4684.4,9.40955628]
[1759764098280,0.46343134,4684.5,4684.4,4.261325]
[1759764098512,0.46343134,4684.5,4684.4,1.838325]
[1759764099108,0.46263134,4684.5,4684.4,1.838325]
[1759764099918,0.01143134,4684.5,4684.4,11.63443228]
[1759764100223,0.46463134,4684.5,4684.4,6.501311]
[1759764100522,0.46463134,4684.5,4684.4,1.838325]
[1759764100687,2.59933088,4684.5,4684.4,1.363325]
[1759764100883,0.72707634,4684.5,4684.4,1.363325]
[1759764101115,0.46463134,4684.5,4684.4,1.363325]
[1759764102011,2.59933088,4684.5,4684.4,1.363325]
[1759764102399,0.46463134,4684.5,4684.4,1.363325]
[1759764104511,0.01143134,4684.5,4684.4,1.363325]
[1759764105744,0.46463134,4684.5,4684.4,1.363325]
[1759764107744,0.01143134,4684.5,4684.4,1.363325]
[1759764107895,0.01143134,4684.5,4684.4,13.631408]
[1759764108096,0.01143134,4684.5,4684.4,16.19795311]
[1759764108499,0.01143134,4684.5,4684.4,17.33685533]
[1759764108732,0.01143134,4684.5,4684.4,18.59795311]
[1759764108912,0.01143134,4684.5,4684.4,28.68934811]
[1759764109106,0.01143134,4684.5,4684.4,28.99748872]
[1759764109336,0.01143134,4684.5,4684.4,28.29224972]
[1759764109550,0.01143134,4684.5,4684.4,25.71665872]
[1759764109902,0.01143134,4684.5,4684.4,35.66863272]
[1759764110102,0.01143134,4684.5,4684.4,26.30794011]
[1759764110434,0.01143134,4684.5,4684.4,18.56459111]
[1759764110636,0.01143134,4684.5,4684.4,8.889381]
[1759764110811,0.01143134,4684.5,4684.4,3.763325]
[1759764111028,0.01143134,4684.5,4684.4,4.92133457]
[1759764111230,0.01143134,4684.5,4684.4,3.784325]
[1759764112128,0.46463134,4684.5,4684.4,3.784325]
[1759764112522,0.01143134,4684.5,4684.4,3.784325]
[1759764112919,0.46463134,4684.5,4684.4,1.363325]
[1759764113345,0.727063,4684.5,4684.4,1.363325]
[1759764113543,0.46463134,4684.5,4684.4,1.363325]
[1759764116027,2.59933088,4684.5,4684.4,1.363325]
[1759764116739,2.70573088,4684.5,4684.4,1.363325]
[1759764117470,5.12773088,4684.5,4684.4,1.363325]
[1759764117764,0.01143134,4684.5,4684.4,1.363325]
[1759764119676,0.46463134,4684.5,4684.4,1.363325]
[1759764119840,0.94053132,4684.5,4684.4,1.363325]
[1759764120048,0.01143134,4684.5,4684.4,1.363325]
[1759764120951,0.01143134,4684.5,4684.4,5.931981]
[1759764121163,0.01143134,4684.5,4684.4,7.12218135]
[1759764121339,0.01143134,4684.5,4684.4,5.95718135]
[1759764121544,0.01143134,4684.5,4684.4,4.706446]
[1759764121969,0.01143134,4684.5,4684.4,13.05699368]
[1759764122177,0.01143134,4684.5,4684.4,10.92235103]
[1759764122397,0.01143134,4684.5,4684.4,6.91110011]
[1759764122946,0.01143134,4684.5,4684.4,20.13994811]
[1759764123148,0.01143134,4684.5,4684.4,20.44808872]
[1759764123647,0.01063134,4684.5,4684.4,20.44808872]
[1759764123971,0.01063134,4684.5,4684.4,36.63801072]
[1759764124375,0.01063134,4684.5,4684.4,37.27161072]
[1759764124578,0.01063134,4684.5,4684.4,37.57884368]
[1759764125487,0.0007334,4684.5,4684.4,39.47321369]
[1759764125647,0.0007334,4684.5,4684.4,37.57884368]
[1759764125848,0.0007334,4684.5,4684.4,39.47545577]
[1759764126078,0.0251191,4684.9,4684.8,5.16816284]
[1759764126275,1e-08,4684.9,4684.8,37.59316284]
[1759764126476,1e-08,4685.5,4685.4,2.13428949]
[1759764126804,1e-08,4686.9,4686.8,2.76725195]
[1759764126969,1e-08,4686.9,4686.8,8.49090795]
[1759764127275,1e-08,4686.9,4686.8,24.69531946]
[1759764127445,1e-08,4686.9,4686.8,8.80000595]
[1759764127647,1e-08,4687.0,4686.9,5.16720643]
[1759764127859,0.4706,4689.8,4686.9,5.16720643]
[1759764127860,1.37757425,4687.6,4687.5,2.76693333]
[1759764128145,1e-08,4687.6,4687.5,38.05773333]
[1759764128460,1e-08,4687.9,4687.8,2.7667968]
[1759764128659,0.01,4689.9,4688.4,0.6336]
[1759764128858,0.01,4689.9,4689.4,0.75428645]
[1759764129048,0.01,4689.9,4689.8,6.29731677]
[1759764129243,0.01,4689.9,4689.8,37.59288709]
[1759764129478,0.01,4689.9,4689.8,38.68456066]
[1759764129846,0.01,4689.9,4689.8,33.49167357]
[1759764130047,0.01,4689.9,4689.8,9.98238491]
[1759764130273,0.01,4689.9,4689.8,6.397069]
[1759764130487,0.01,4689.9,4689.8,7.17657359]
[1759764130786,0.01,4689.9,4689.8,4.77657359]
[1759764131076,0.01,4689.9,4689.8,2.69539559]
[1759764131382,0.4806,4689.9,4689.8,2.427]
[1759764131587,0.01,4689.9,4689.8,2.427]
[1759764131883,0.01,4689.9,4689.8,6.92442]
[1759764132085,0.01,4689.9,4689.8,24.554845]
[1759764132263,0.01,4689.9,4689.8,16.302757]
[1759764132458,0.01,4689.9,4689.8,2.4]
[1759764132766,0.4806,4689.9,4689.8,4.829]
[1759764132971,0.01,4689.9,4689.8,2.429]
[1759764133488,0.01,4689.9,4688.1,0.75062424]
[1759764133489,0.4806,4689.9,4688.1,0.75062424]
[1759764133704,0.4806,4689.9,4688.3,2.4]
[1759764133907,0.4706,4689.8,4688.4,8.814057]
[1759764134105,0.4706,4689.8,4688.5,2.429]
[1759764134409,0.01,4689.9,4688.5,19.750769]
[1759764134584,0.4706,4689.8,4688.7,2.4]
[1759764134906,0.4706,4689.8,4688.8,4.614371]
[1759764135111,0.4706,4689.8,4688.1,0.32064061]
[1759764135271,0.4706,4689.7,4688.2,7.833402]
[1759764135475,0.4706,4689.7,4688.3,7.571623]
[1759764135713,0.01,4689.9,4688.3,3.144748]
[1759764136008,0.01,4689.9,4687.8,2.82199928]
[1759764136009,0.4706,4689.6,4687.8,0.42199928]
[1759764136174,0.2612976,4689.5,4687.9,3.356868]
[1759764136374,0.7318976,4689.5,4688.0,2.43]
[1759764136572,0.4706,4689.4,4688.1,5.665991]
[1759764136811,0.4706,4689.4,4688.1,2.599991]
[1759764136991,0.4706,4689.3,4688.0,2.43]
[1759764137333,2.13265753,4689.0,4688.0,2.43]
[1759764137499,0.4706,4688.9,4688.0,2.43]
[1759764137812,0.4706,4688.9,4687.4,0.32064061]
[1759764137813,0.4706,4688.9,4687.4,0.74087421]
[1759764137977,2.6033118,4688.9,4687.5,4.422004]
[1759764138178,0.4706,4688.9,4688.4,0.1064]
[1759764138381,0.4706,4688.9,4688.8,0.1064]
[1759764138676,0.01,4689.9,4688.8,2.5354]
[1759764138677,0.4706,4689.8,4688.8,2.5354]
[1759764138986,0.4706,4689.8,4689.6,0.1064]
[1759764139424,0.01,4689.9,4689.6,0.1064]
[1759764139627,0.01,4689.9,4689.7,2.43]
[1759764140774,0.01,4689.9,4689.7,2.8938]
[1759764141136,0.01,4689.9,4689.7,2.43]
[1759764141342,0.01,4689.9,4689.8,2.13228709]
[1759764141504,0.01,4689.9,4689.8,22.96525209]
[1759764141701,0.01,4689.9,4689.8,20.74368309]
[1759764142315,0.01,4689.9,4689.8,21.0643237]
[1759764142630,0.01,4689.9,4689.8,23.90119926]
[1759764142835,0.01,4689.9,4689.8,23.56220626]
[1759764143408,0.01,4689.9,4689.8,9.15810256]
[1759764143602,0.01,4689.9,4689.8,4.37693856]
[1759764143807,0.01,4689.9,4688.3,0.75062424]
[1759764144041,0.01,4689.9,4688.7,2.4]
[1759764144251,0.01,4689.9,4688.1,0.75062424]
[1759764144406,2.13202377,4690.4,4688.1,0.75062424]
[1759764144407,0.4706,4692.8,4689.9,30.0]
[1759764144598,2.14088191,4692.9,4688.9,3.15062424]
[1759764144803,0.4706,4691.7,4689.8,2.13226988]
[1759764145019,0.4706,4692.3,4690.1,2.4]
[1759764145321,0.4806,4692.9,4690.6,2.13190317]
[1759764145509,0.4806,4692.9,4690.8,2.13183252]
[1759764145721,0.4806,4692.9,4690.8,23.49412025]
[1759764145931,0.01,4692.9,4690.8,36.34560825]
[1759764146132,0.01,4692.9,4690.8,36.44997539]
[1759764146354,0.4706,4692.4,4690.8,2.4]
[1759764146642,0.4706,4692.4,4690.8,6.76770126]
[1759764146823,0.01,4692.9,4690.8,6.76770126]
[1759764146824,0.01,4692.9,4690.8,8.89953378]
[1759764147199,0.01,4692.9,4690.8,36.46553378]
[1759764147444,0.4706,4692.4,4690.8,13.89089328]
[1759764147739,0.01,4692.9,4690.8,4.835]
[1759764147740,1.18958188,4691.9,4690.8,4.835]
[1759764148050,0.0092,4690.9,4690.8,2.4]
[1759764148250,0.0092,4690.9,4690.8,2.435]
[1759764148451,0.0092,4690.9,4689.2,1.12770334]
[1759764148452,0.0092,4690.9,4689.3,0.36877775]
[1759764148653,0.4798,4690.9,4689.7,0.00282195]
[1759764148854,0.4798,4690.9,4689.8,5.119145]
[1759764148855,0.0092,4690.9,4689.8,5.119145]
[1759764149055,0.0092,4690.9,4690.1,2.13211964]
[1759764149366,0.0092,4690.9,4689.7,0.46662195]
[1759764149367,0.0092,4690.9,4690.2,11.68075773]
[1759764149575,0.0092,4690.9,4690.8,0.1064]
[1759764149871,0.0092,4690.9,4690.8,2.91017775]
[1759764150368,0.0092,4690.9,4690.8,5.12476275]
[1759764150747,0.0092,4690.9,4690.8,2.91017775]
[1759764150947,0.0092,4690.9,4690.8,2.5414]